[Event "FIDE U16 Olympiad_boards_1-80"]
[Site "Eindhoven, Netherlands"]
[Date "2023.08.14"]
[Round "2.58"]
[White "Terlouw, Wouter"]
[Black "Erdogmus, Yagiz Kaan"]
[Result "0-1"]
[TimeControl "2700+10"]
[WhiteElo "1845"]
[BlackElo "2353"]

1. d4 {[%clk 00:45:18]} {[%emt 00:00:02]} Nf6 {[%clk 00:45:16]} {[%emt
00:00:05]} 2. Bg5 {[%clk 00:45:26]} {[%emt 00:00:02]} Ne4 {[%clk 00:45:05]}
{[%emt 00:00:21]} 3. Bf4 {[%clk 00:45:34]} {[%emt 00:00:02]} c5 {[%clk
00:45:06]} {[%emt 00:00:09]} 4. d5 {[%clk 00:44:46]} {[%emt 00:00:57]} Qb6
{[%clk 00:43:59]} {[%emt 00:01:16]} 5. Bc1 {[%clk 00:44:54]} {[%emt 00:00:02]}
e6 {[%clk 00:42:50]} {[%emt 00:01:20]} 6. f3 {[%clk 00:44:08]} {[%emt
00:00:57]} Nf6 {[%clk 00:42:45]} {[%emt 00:00:15]} 7. e4 {[%clk 00:42:26]}
{[%emt 00:01:52]} exd5 {[%clk 00:40:43]} {[%emt 00:02:11]} 8. exd5 {[%clk
00:42:00]} {[%emt 00:00:37]} Bd6 {[%clk 00:39:59]} {[%emt 00:00:54]} 9. Na3
{[%clk 00:39:43]} {[%emt 00:02:26]} O-O {[%clk 00:39:29]} {[%emt 00:00:40]} 10.
Nc4 {[%clk 00:38:30]} {[%emt 00:01:23]} Re8+ {[%clk 00:39:09]} {[%emt
00:00:31]} 11. Be2 {[%clk 00:38:33]} {[%emt 00:00:05]} Qc7 {[%clk 00:38:36]}
{[%emt 00:00:44]} 12. Bg5 {[%clk 00:32:50]} {[%emt 00:05:54]} b5 {[%clk
00:33:54]} {[%emt 00:04:52]} 13. Nxd6 {[%clk 00:31:43]} {[%emt 00:01:16]} Qxd6
{[%clk 00:34:01]} {[%emt 00:00:03]} 14. Bxf6 {[%clk 00:31:20]} {[%emt
00:00:33]} Qxf6 {[%clk 00:34:07]} {[%emt 00:00:04]} 15. c3 {[%clk 00:29:06]}
{[%emt 00:02:24]} b4 {[%clk 00:33:55]} {[%emt 00:00:21]} 16. Qd2 {[%clk
00:28:47]} {[%emt 00:00:26]} a5 {[%clk 00:30:39]} {[%emt 00:03:30]} 17. c4
{[%clk 00:25:48]} {[%emt 00:03:10]} d6 {[%clk 00:29:17]} {[%emt 00:01:32]} 18.
Kf1 {[%clk 00:20:50]} {[%emt 00:05:08]} Bf5 {[%clk 00:28:46]} {[%emt 00:00:40]}
19. g3 {[%clk 00:12:45]} {[%emt 00:08:16]} Nd7 {[%clk 00:28:27]} {[%emt
00:00:28]} 20. Kg2 {[%clk 00:12:14]} {[%emt 00:00:41]} Re7 {[%clk 00:26:59]}
{[%emt 00:01:38]} 21. f4 {[%clk 00:10:02]} {[%emt 00:02:23]} Rae8 {[%clk
00:26:38]} {[%emt 00:00:30]} 22. Bf3 {[%clk 00:06:40]} {[%emt 00:03:33]} Re3
{[%clk 00:25:37]} {[%emt 00:01:10]} 23. Rf1 {[%clk 00:04:48]} {[%emt 00:02:01]}
Bd3 {[%clk 00:24:21]} {[%emt 00:01:26]} 24. Rf2 {[%clk 00:03:32]} {[%emt
00:01:27]} Bxc4 {[%clk 00:20:13]} {[%emt 00:04:18]} 25. b3 {[%clk 00:03:32]}
{[%emt 00:00:11]} Bd3 {[%clk 00:19:58]} {[%emt 00:00:25]} 26. Qb2 {[%clk
00:01:06]} {[%emt 00:02:36]} Qf5 {[%clk 00:19:34]} {[%emt 00:00:34]} 27. h4
{[%clk 00:00:37]} {[%emt 00:00:39]} Nf6 {[%clk 00:19:28]} {[%emt 00:00:15]} 28.
Qc1 {[%clk 00:00:20]} {[%emt 00:00:27]} h5 {[%clk 00:18:48]} {[%emt 00:00:51]}
29. Nh3 {[%clk 00:00:16]} {[%emt 00:00:14]} Ng4 {[%clk 00:18:39]} {[%emt
00:00:18]} 30. Bxg4 {[%clk 00:00:12]} {[%emt 00:00:14]} Qxg4 {[%clk 00:18:43]}
{[%emt 00:00:05]} 0-1

[Event "FIDE U16 Olympiad_boards_1-80"]
[Site "Eindhoven, Netherlands"]
[Date "2023.08.14"]
[Round "2.59"]
[White "Kilic, Eray"]
[Black "Zecha, Oscar"]
[Result "1-0"]
[TimeControl "2700+10"]
[WhiteElo "2433"]
[BlackElo "1867"]

1. e4 {[%clk 00:45:17]} {[%emt 00:00:03]} e5 {[%clk 00:45:19]} {[%emt
00:00:01]} 2. Nf3 {[%clk 00:45:26]} {[%emt 00:00:02]} Nc6 {[%clk 00:45:28]}
{[%emt 00:00:01]} 3. Bc4 {[%clk 00:45:34]} {[%emt 00:00:01]} Bc5 {[%clk
00:45:36]} {[%emt 00:00:02]} 4. c3 {[%clk 00:45:43]} {[%emt 00:00:01]} Nf6
{[%clk 00:45:44]} {[%emt 00:00:02]} 5. d3 {[%clk 00:45:52]} {[%emt 00:00:01]}
d6 {[%clk 00:45:54]} {[%emt 00:00:02]} 6. Bb3 {[%clk 00:46:00]} a6 {[%clk
00:45:55]} {[%emt 00:00:09]} 7. h3 {[%clk 00:46:08]} {[%emt 00:00:01]} Be6
{[%clk 00:44:35]} {[%emt 00:01:30]} 8. O-O {[%clk 00:45:11]} {[%emt 00:01:07]}
Ba7 {[%clk 00:43:32]} {[%emt 00:01:14]} 9. Nbd2 {[%clk 00:44:05]} {[%emt
00:01:16]} O-O {[%clk 00:43:33]} {[%emt 00:00:09]} 10. Re1 {[%clk 00:43:13]}
{[%emt 00:01:02]} Re8 {[%clk 00:43:23]} {[%emt 00:00:21]} 11. Nf1 {[%clk
00:43:05]} {[%emt 00:00:16]} d5 {[%clk 00:41:45]} {[%emt 00:01:49]} 12. Ng5
{[%clk 00:40:22]} {[%emt 00:02:53]} Qd6 {[%clk 00:37:58]} {[%emt 00:03:57]} 13.
Nxe6 {[%clk 00:39:55]} {[%emt 00:00:37]} fxe6 {[%clk 00:37:21]} {[%emt
00:00:47]} 14. exd5 {[%clk 00:39:32]} {[%emt 00:00:33]} exd5 {[%clk 00:37:13]}
{[%emt 00:00:16]} 15. Be3 {[%clk 00:39:39]} {[%emt 00:00:03]} Bxe3 {[%clk
00:35:30]} {[%emt 00:01:55]} 16. Nxe3 {[%clk 00:39:48]} {[%emt 00:00:01]} Kh8
{[%clk 00:35:22]} {[%emt 00:00:18]} 17. Qd2 {[%clk 00:35:35]} {[%emt 00:04:22]}
Qd7 {[%clk 00:34:43]} {[%emt 00:00:50]} 18. Ba4 {[%clk 00:33:41]} {[%emt
00:02:04]} Qf7 {[%clk 00:29:40]} {[%emt 00:05:13]} 19. Bxc6 {[%clk 00:29:23]}
{[%emt 00:04:28]} bxc6 {[%clk 00:29:48]} 20. Nf1 {[%clk 00:29:06]} {[%emt
00:00:26]} Qg6 {[%clk 00:28:56]} {[%emt 00:01:03]} 21. Ng3 {[%clk 00:29:11]}
{[%emt 00:00:06]} Nh5 {[%clk 00:27:29]} {[%emt 00:01:37]} 22. Nxh5 {[%clk
00:28:55]} {[%emt 00:00:25]} Qxh5 {[%clk 00:27:38]} {[%emt 00:00:01]} 23. Re3
{[%clk 00:29:04]} {[%emt 00:00:01]} Re6 {[%clk 00:24:37]} {[%emt 00:03:11]} 24.
Rae1 {[%clk 00:29:12]} {[%emt 00:00:02]} Rae8 {[%clk 00:22:45]} {[%emt
00:02:02]} 25. Qc2 {[%clk 00:28:54]} {[%emt 00:00:28]} Qh4 {[%clk 00:17:42]}
{[%emt 00:05:15]} 26. c4 {[%clk 00:26:47]} {[%emt 00:02:15]} Qd4 {[%clk
00:15:52]} {[%emt 00:02:01]} 27. R1e2 {[%clk 00:26:15]} {[%emt 00:00:41]} Qb6
{[%clk 00:15:19]} {[%emt 00:00:43]} 28. Qa4 {[%clk 00:25:32]} {[%emt 00:00:53]}
h6 {[%clk 00:13:41]} {[%emt 00:01:48]} 29. Rg3 {[%clk 00:23:49]} {[%emt
00:01:52]} R8e7 {[%clk 00:13:36]} {[%emt 00:00:16]} 30. Kh2 {[%clk 00:23:31]}
{[%emt 00:00:28]} e4 {[%clk 00:12:58]} {[%emt 00:00:49]} 31. dxe4 {[%clk
00:21:42]} {[%emt 00:01:58]} Rxe4 {[%clk 00:13:05]} {[%emt 00:00:04]} 32. Rxe4
{[%clk 00:20:29]} {[%emt 00:01:23]} Rxe4 {[%clk 00:13:12]} {[%emt 00:00:02]} 33.
Qc2 {[%clk 00:20:26]} {[%emt 00:00:13]} Rxc4 {[%clk 00:12:56]} {[%emt
00:00:27]} 34. Qg6 {[%clk 00:20:35]} {[%emt 00:00:01]} Qd4 {[%clk 00:13:04]}
{[%emt 00:00:02]} 35. Re3 {[%clk 00:20:43]} {[%emt 00:00:01]} Qf4+ {[%clk
00:12:59]} {[%emt 00:00:15]} 36. Rg3 {[%clk 00:20:49]} {[%emt 00:00:05]} Qd4
{[%clk 00:13:08]} 37. Rf3 {[%clk 00:20:18]} {[%emt 00:00:40]} Qc5 {[%clk
00:12:17]} {[%emt 00:01:00]} 38. Qe8+ {[%clk 00:20:06]} {[%emt 00:00:24]} Kh7
{[%clk 00:12:26]} {[%emt 00:00:01]} 39. Rf8 {[%clk 00:20:13]} {[%emt 00:00:02]}
Qd6+ {[%clk 00:06:40]} {[%emt 00:05:56]} 40. g3 {[%clk 00:20:22]} 1-0

[Event "FIDE U16 Olympiad_boards_1-80"]
[Site "Eindhoven, Netherlands"]
[Date "2023.08.14"]
[Round "2.60"]
[White "Westerhof, Fleur"]
[Black "Akat, Elifnaz"]
[Result "0-1"]
[TimeControl "2700+10"]
[WhiteElo "1793"]
[BlackElo "1726"]

1. e4 {[%clk 00:45:17]} {[%emt 00:00:02]} c5 {[%clk 00:45:19]} {[%emt
00:00:02]} 2. Nf3 {[%clk 00:45:24]} {[%emt 00:00:03]} Nc6 {[%clk 00:45:28]}
{[%emt 00:00:02]} 3. d4 {[%clk 00:45:26]} {[%emt 00:00:07]} cxd4 {[%clk
00:45:37]} {[%emt 00:00:02]} 4. Nxd4 {[%clk 00:45:34]} {[%emt 00:00:02]} Nf6
{[%clk 00:45:45]} {[%emt 00:00:02]} 5. Nc3 {[%clk 00:45:34]} {[%emt 00:00:09]}
e5 {[%clk 00:45:54]} {[%emt 00:00:02]} 6. Ndb5 {[%clk 00:45:34]} {[%emt
00:00:09]} d6 {[%clk 00:46:03]} {[%emt 00:00:02]} 7. Bg5 {[%clk 00:45:36]}
{[%emt 00:00:06]} a6 {[%clk 00:46:12]} {[%emt 00:00:02]} 8. Na3 {[%clk
00:45:27]} {[%emt 00:00:19]} b5 {[%clk 00:46:18]} {[%emt 00:00:04]} 9. Nd5
{[%clk 00:45:33]} {[%emt 00:00:04]} Be7 {[%clk 00:46:27]} {[%emt 00:00:02]} 10.
Bxf6 {[%clk 00:45:34]} {[%emt 00:00:08]} Bxf6 {[%clk 00:46:36]} {[%emt
00:00:02]} 11. c3 {[%clk 00:45:40]} {[%emt 00:00:03]} O-O {[%clk 00:46:03]}
{[%emt 00:00:43]} 12. Nc2 {[%clk 00:45:07]} {[%emt 00:00:43]} Rb8 {[%clk
00:46:04]} {[%emt 00:00:09]} 13. h4 {[%clk 00:43:45]} {[%emt 00:01:32]} g6
{[%clk 00:44:21]} {[%emt 00:01:53]} 14. h5 {[%clk 00:40:59]} {[%emt 00:02:56]}
Bg5 {[%clk 00:42:24]} {[%emt 00:02:07]} 15. Nce3 {[%clk 00:38:53]} {[%emt
00:02:15]} Be6 {[%clk 00:42:15]} {[%emt 00:00:19]} 16. Be2 {[%clk 00:36:57]}
{[%emt 00:02:06]} Ne7 {[%clk 00:41:33]} {[%emt 00:00:53]} 17. Nxe7+ {[%clk
00:32:30]} {[%emt 00:04:37]} Qxe7 {[%clk 00:41:13]} {[%emt 00:00:30]} 18. Nd5
{[%clk 00:32:37]} {[%emt 00:00:02]} Bxd5 {[%clk 00:40:53]} {[%emt 00:00:30]} 19.
Qxd5 {[%clk 00:32:05]} {[%emt 00:00:43]} Rbc8 {[%clk 00:40:49]} {[%emt
00:00:14]} 20. hxg6 {[%clk 00:30:08]} {[%emt 00:02:07]} hxg6 {[%clk 00:40:57]}
{[%emt 00:00:03]} 21. a4 {[%clk 00:29:55]} {[%emt 00:00:21]} b4 {[%clk
00:33:10]} {[%emt 00:07:58]} 22. cxb4 {[%clk 00:26:35]} {[%emt 00:03:29]} Rc2
{[%clk 00:28:22]} {[%emt 00:04:58]} 23. Bxa6 {[%clk 00:24:13]} {[%emt
00:02:32]} Qf6 {[%clk 00:26:39]} {[%emt 00:01:53]} 24. O-O {[%clk 00:22:32]}
{[%emt 00:01:51]} Kg7 {[%clk 00:23:47]} {[%emt 00:03:03]} 25. Rad1 {[%clk
00:21:19]} {[%emt 00:01:22]} Rh8 {[%clk 00:22:49]} {[%emt 00:01:08]} 26. Rd3
{[%clk 00:19:15]} {[%emt 00:02:14]} Qf4 {[%clk 00:20:41]} {[%emt 00:02:18]} 27.
Rh3 {[%clk 00:16:22]} {[%emt 00:03:02]} Rxh3 {[%clk 00:19:08]} {[%emt
00:01:44]} 28. gxh3 {[%clk 00:16:30]} {[%emt 00:00:02]} Bh4 {[%clk 00:19:15]}
{[%emt 00:00:04]} 29. Qb3 {[%clk 00:15:29]} {[%emt 00:01:10]} Bxf2+ {[%clk
00:18:48]} {[%emt 00:00:38]} 30. Kh1 {[%clk 00:15:02]} {[%emt 00:00:36]} Qxe4+
{[%clk 00:18:53]} {[%emt 00:00:05]} 31. Kh2 {[%clk 00:15:02]} {[%emt 00:00:10]}
Bg3+ {[%clk 00:19:00]} {[%emt 00:00:04]} 32. Kxg3 {[%clk 00:14:59]} {[%emt
00:00:12]} Rg2# {[%clk 00:19:09]} {[%emt 00:00:01]} 0-1

[Event "FIDE U16 Olympiad_boards_1-80"]
[Site "Eindhoven, Netherlands"]
[Date "2023.08.14"]
[Round "2.61"]
[White "Elias, David"]
[Black "Kiladze, Luka"]
[Result "0-1"]
[TimeControl "2700+10"]
[WhiteElo "1884"]
[BlackElo "1912"]

1. d4 {[%clk 00:45:11]} {[%emt 00:00:09]} Nf6 {[%clk 00:45:19]} {[%emt
00:00:01]} 2. c4 {[%clk 00:45:15]} {[%emt 00:00:07]} e6 {[%clk 00:45:28]} 3.
Nf3 {[%clk 00:45:06]} {[%emt 00:00:18]} b6 {[%clk 00:45:05]} {[%emt 00:00:34]}
4. e3 {[%clk 00:44:21]} {[%emt 00:00:54]} Bb7 {[%clk 00:45:04]} {[%emt
00:00:12]} 5. Be2 {[%clk 00:44:15]} {[%emt 00:00:16]} Be7 {[%clk 00:44:42]}
{[%emt 00:00:31]} 6. O-O {[%clk 00:44:17]} {[%emt 00:00:08]} O-O {[%clk
00:44:42]} {[%emt 00:00:10]} 7. Qc2 {[%clk 00:43:23]} {[%emt 00:01:04]} c5
{[%clk 00:44:39]} {[%emt 00:00:13]} 8. a3 {[%clk 00:42:21]} {[%emt 00:01:12]}
cxd4 {[%clk 00:44:33]} {[%emt 00:00:16]} 9. Nxd4 {[%clk 00:41:43]} {[%emt
00:00:48]} Nc6 {[%clk 00:43:16]} {[%emt 00:01:27]} 10. Nc3 {[%clk 00:40:03]}
{[%emt 00:01:49]} Nxd4 {[%clk 00:42:59]} {[%emt 00:00:28]} 11. exd4 {[%clk
00:40:08]} {[%emt 00:00:06]} d5 {[%clk 00:43:08]} 12. cxd5 {[%clk 00:37:33]}
{[%emt 00:02:44]} Nxd5 {[%clk 00:43:12]} {[%emt 00:00:06]} 13. Be3 {[%clk
00:35:18]} {[%emt 00:02:26]} Rc8 {[%clk 00:41:41]} {[%emt 00:01:40]} 14. Bd3
{[%clk 00:32:58]} {[%emt 00:02:30]} g6 {[%clk 00:39:51]} {[%emt 00:02:00]} 15.
Bh6 {[%clk 00:29:12]} {[%emt 00:03:56]} Re8 {[%clk 00:40:00]} {[%emt 00:00:01]}
16. Bb5 {[%clk 00:29:16]} {[%emt 00:00:07]} Nxc3 {[%clk 00:34:23]} {[%emt
00:05:47]} 17. Bxe8 {[%clk 00:29:10]} {[%emt 00:00:16]} Ne4 {[%clk 00:33:50]}
{[%emt 00:00:42]} 18. Bxf7+ {[%clk 00:28:34]} {[%emt 00:00:46]} Kxf7 {[%clk
00:33:59]} {[%emt 00:00:01]} 19. Qd3 {[%clk 00:28:01]} {[%emt 00:00:42]} Bf6
{[%clk 00:32:45]} {[%emt 00:01:25]} 20. Be3 {[%clk 00:26:29]} {[%emt 00:01:40]}
Nc5 {[%clk 00:31:45]} {[%emt 00:01:13]} 21. Qd1 {[%clk 00:24:27]} {[%emt
00:02:12]} Qd5 {[%clk 00:31:05]} {[%emt 00:00:49]} 22. Qg4 {[%clk 00:23:36]}
{[%emt 00:01:01]} Nb3 {[%clk 00:30:43]} {[%emt 00:00:31]} 23. Rad1 {[%clk
00:23:28]} {[%emt 00:00:19]} h5 {[%clk 00:29:46]} {[%emt 00:01:07]} 24. Qg3
{[%clk 00:20:54]} {[%emt 00:02:44]} h4 {[%clk 00:29:12]} {[%emt 00:00:44]} 25.
Qg4 {[%clk 00:19:47]} {[%emt 00:01:16]} Qf5 {[%clk 00:28:54]} {[%emt 00:00:28]}
26. Qxf5 {[%clk 00:18:26]} {[%emt 00:01:32]} gxf5 {[%clk 00:29:02]} {[%emt
00:00:02]} 27. Rd3 {[%clk 00:18:11]} {[%emt 00:00:25]} Bd5 {[%clk 00:29:03]}
{[%emt 00:00:09]} 28. Rc3 {[%clk 00:17:57]} {[%emt 00:00:24]} Rxc3 {[%clk
00:28:40]} {[%emt 00:00:34]} 29. bxc3 {[%clk 00:18:06]} b5 {[%clk 00:28:47]}
{[%emt 00:00:03]} 30. f3 {[%clk 00:14:17]} {[%emt 00:03:58]} a5 {[%clk
00:28:31]} {[%emt 00:00:27]} 31. Bc1 {[%clk 00:13:16]} {[%emt 00:01:10]} Be7
{[%clk 00:27:59]} {[%emt 00:00:42]} 32. Bb2 {[%clk 00:12:07]} {[%emt 00:01:20]}
Nd2 {[%clk 00:28:03]} {[%emt 00:00:05]} 33. Ra1 {[%clk 00:11:58]} {[%emt
00:00:18]} Bd6 {[%clk 00:26:40]} {[%emt 00:01:34]} 34. Kh1 {[%clk 00:09:48]}
{[%emt 00:02:19]} h3 {[%clk 00:25:13]} {[%emt 00:01:38]} 35. gxh3 {[%clk
00:09:46]} {[%emt 00:00:12]} Nxf3 {[%clk 00:25:20]} {[%emt 00:00:03]} 36. h4
{[%clk 00:08:25]} {[%emt 00:01:31]} Kg6 {[%clk 00:23:21]} {[%emt 00:02:10]} 37.
Kg2 {[%clk 00:07:33]} {[%emt 00:01:01]} Ne1+ {[%clk 00:23:02]} {[%emt
00:00:28]} 38. Kf1 {[%clk 00:06:49]} {[%emt 00:00:55]} Nd3 {[%clk 00:23:10]}
{[%emt 00:00:01]} 39. Bc1 {[%clk 00:06:45]} {[%emt 00:00:16]} Nxc1 {[%clk
00:23:17]} {[%emt 00:00:03]} 40. Rxc1 {[%clk 00:06:54]} Bxa3 {[%clk 00:23:19]}
{[%emt 00:00:08]} 41. Ra1 {[%clk 00:06:34]} {[%emt 00:00:28]} Bb2 {[%clk
00:22:53]} {[%emt 00:00:37]} 42. Rxa5 {[%clk 00:06:37]} {[%emt 00:00:08]} Bxc3
{[%clk 00:23:01]} 43. Ra6 {[%clk 00:06:09]} {[%emt 00:00:38]} Bxd4 {[%clk
00:23:05]} {[%emt 00:00:06]} 44. Ke2 {[%clk 00:06:06]} {[%emt 00:00:11]} b4
{[%clk 00:23:10]} {[%emt 00:00:07]} 45. Kd3 {[%clk 00:06:13]} {[%emt 00:00:03]}
Bf6 {[%clk 00:23:17]} {[%emt 00:00:03]} 46. Rb6 {[%clk 00:05:52]} {[%emt
00:00:31]} b3 {[%clk 00:23:25]} {[%emt 00:00:02]} 47. h5+ {[%clk 00:05:07]}
{[%emt 00:00:54]} Kxh5 {[%clk 00:23:30]} {[%emt 00:00:05]} 48. h4 {[%emt
00:02:40]} b2 {[%clk 00:23:34]} {[%emt 00:00:04]} 49. Ke3 {[%clk 00:00:50]}
{[%emt 00:02:00]} Be4 {[%clk 00:23:28]} {[%emt 00:00:16]} 50. Rb3 {[%clk
00:00:22]} {[%emt 00:00:38]} b1=Q {[%clk 00:23:22]} {[%emt 00:00:16]} 51. Kf4
{[%clk 00:00:23]} {[%emt 00:00:09]} e5+ {[%clk 00:23:16]} {[%emt 00:00:16]} 0-1

[Event "FIDE U16 Olympiad_boards_1-80"]
[Site "Eindhoven, Netherlands"]
[Date "2023.08.14"]
[Round "2.62"]
[White "Shamatava, Nikolozi"]
[Black "Skreko, Igor"]
[Result "1-0"]
[TimeControl "2700+10"]
[WhiteElo "1872"]
[BlackElo "1985"]

1. d4 {[%clk 00:45:17]} {[%emt 00:00:02]} Nf6 {[%clk 00:45:17]} {[%emt
00:00:04]} 2. c4 {[%clk 00:45:26]} {[%emt 00:00:01]} g6 {[%clk 00:45:22]}
{[%emt 00:00:05]} 3. g3 {[%clk 00:45:34]} {[%emt 00:00:02]} Bg7 {[%clk
00:45:28]} {[%emt 00:00:04]} 4. Bg2 {[%clk 00:45:43]} {[%emt 00:00:01]} O-O
{[%clk 00:45:32]} {[%emt 00:00:06]} 5. Nc3 {[%clk 00:45:52]} d6 {[%clk
00:45:33]} {[%emt 00:00:09]} 6. Nf3 {[%clk 00:45:59]} {[%emt 00:00:03]} Nc6
{[%clk 00:45:34]} {[%emt 00:00:09]} 7. O-O {[%clk 00:46:05]} {[%emt 00:00:03]}
Bf5 {[%clk 00:45:42]} {[%emt 00:00:04]} 8. d5 {[%clk 00:44:43]} {[%emt
00:01:31]} Na5 {[%clk 00:45:48]} {[%emt 00:00:04]} 9. Nd2 {[%clk 00:44:47]}
{[%emt 00:00:06]} c6 {[%clk 00:45:50]} {[%emt 00:00:08]} 10. e4 {[%clk
00:39:29]} {[%emt 00:05:28]} Bg4 {[%clk 00:45:55]} {[%emt 00:00:05]} 11. f3
{[%clk 00:39:31]} {[%emt 00:00:08]} Bd7 {[%clk 00:46:00]} {[%emt 00:00:04]} 12.
Kh1 {[%clk 00:35:58]} {[%emt 00:03:44]} cxd5 {[%clk 00:45:33]} {[%emt
00:00:36]} 13. exd5 {[%clk 00:34:07]} {[%emt 00:02:01]} Rc8 {[%clk 00:44:34]}
{[%emt 00:01:09]} 14. Qe2 {[%clk 00:31:28]} {[%emt 00:02:50]} Qc7 {[%clk
00:42:29]} {[%emt 00:02:14]} 15. Re1 {[%clk 00:27:09]} {[%emt 00:04:30]} Nxc4
{[%clk 00:34:20]} {[%emt 00:08:19]} 16. Nxc4 {[%clk 00:27:15]} {[%emt
00:00:05]} Qxc4 {[%clk 00:34:28]} {[%emt 00:00:02]} 17. Qxc4 {[%clk 00:27:23]}
{[%emt 00:00:02]} Rxc4 {[%clk 00:34:24]} {[%emt 00:00:13]} 18. Rxe7 {[%clk
00:27:25]} {[%emt 00:00:08]} Rd8 {[%clk 00:33:27]} {[%emt 00:01:07]} 19. Re1
{[%clk 00:25:04]} {[%emt 00:02:31]} a6 {[%clk 00:25:48]} {[%emt 00:07:49]} 20.
Bf4 {[%clk 00:23:45]} {[%emt 00:01:28]} Be8 {[%clk 00:25:41]} {[%emt 00:00:18]}
21. Rac1 {[%clk 00:23:25]} {[%emt 00:00:31]} b5 {[%clk 00:25:32]} {[%emt
00:00:19]} 22. b3 {[%clk 00:20:15]} {[%emt 00:03:20]} Rcc8 {[%clk 00:22:40]}
{[%emt 00:03:01]} 23. Bh3 {[%clk 00:19:02]} {[%emt 00:01:23]} Rc5 {[%clk
00:20:59]} {[%emt 00:01:51]} 24. Be3 {[%clk 00:17:54]} {[%emt 00:01:18]} Rc7
{[%clk 00:20:09]} {[%emt 00:01:01]} 25. Bb6 {[%clk 00:17:45]} {[%emt 00:00:19]}
Rcc8 {[%clk 00:18:55]} {[%emt 00:01:24]} 26. Bxd8 {[%clk 00:16:56]} {[%emt
00:00:58]} Rxd8 {[%clk 00:19:04]} 27. Ne4 {[%clk 00:16:54]} {[%emt 00:00:12]}
Nxe4 {[%clk 00:13:31]} {[%emt 00:05:44]} 28. Rxe4 {[%clk 00:16:53]} {[%emt
00:00:10]} Kf8 {[%clk 00:12:49]} {[%emt 00:00:52]} 29. Rc7 {[%clk 00:15:54]}
{[%emt 00:01:08]} a5 {[%clk 00:12:03]} {[%emt 00:00:57]} 30. f4 {[%clk
00:15:40]} {[%emt 00:00:24]} Bf6 {[%clk 00:11:22]} {[%emt 00:00:51]} 31. Bc8
{[%clk 00:15:00]} {[%emt 00:00:49]} b4 {[%clk 00:10:20]} {[%emt 00:01:13]} 32.
Ba6 {[%clk 00:12:31]} {[%emt 00:02:39]} Ra8 {[%clk 00:10:20]} {[%emt 00:00:10]}
33. Bb7 {[%clk 00:12:24]} {[%emt 00:00:16]} Ra7 {[%clk 00:09:03]} {[%emt
00:01:28]} 34. Rxe8+ {[%clk 00:12:32]} {[%emt 00:00:02]} 1-0